Cogmind - Beta 15 @@@ ROGUE MODE // 2025.08.05 @ 23:05:22 Player: Jiber Result: Destroyed by G-47 Trooper with Particle Gun Performance ------------- Evolutions (2) 1000 Regions Visited (5) 1000 Robots Destroyed (37) 185 Value Destroyed (1232) 1232 Prototype IDs (4) 80 Alien Tech Used (0) 0 Bonus (700) 700 TOTAL SCORE: 4197 Bonus ------- Entered Garrisons 200 Used RIF Installer 500 Cogmind --------- Core Integrity 0/550 Matter 175/300 Energy 275/275 System Corruption 2% Temperature Cool (9) Movement Treading (170) Location -8/Materials Parts ------- > --- POWER (1) -------- Deuterium Engine > --- PROPULSION (3) --- Armored Treads > --- UTILITY (5) ------ Terrain Scan Processor Core Shielding Utility Shielding > --- WEAPON (2) ------- Improved Grenade Launcher > --- INVENTORY (5) ---- Light Nuclear Core Medium Storage Unit Relay Coupler [NC] (29) Relay Coupler [Grunt] (23) Peak State ------------ > --- POWER ------------ Deuterium Engine > --- PROPULSION ------- Light Treads Improved Treads Armored Treads > --- UTILITY ---------- Terrain Scan Processor Utility Shielding Utility Shielding Hardened Medium Armor Plating High-powered Tractor Beam > --- WEAPON ----------- Particle Gun Enhanced Autogun > --- INVENTORY -------- Light Nuclear Core Aluminum Leg Titanium Leg Light Armor Plating [Rating: 25] Favorites ----------- Power Deuterium Engine Engine Deuterium Engine Power Core Light Nuclear Core Propulsion Aluminum Leg Treads Light Treads Leg Aluminum Leg Flight Unit Flight Unit Utility Utility Shielding Device High-powered Tractor Beam Storage Compact Battery Processor Terrain Scan Processor Protection Utility Shielding Weapon Light Assault Rifle Energy Gun Small Laser Energy Cannon Advanced Beam Cannon Ballistic Gun Light Assault Rifle Ballistic Cannon Light Cannon Launcher Improved Grenade Launcher Build | -11 -10 -9 -8 -8 -8 ------- Run | Yrd Mat Mat Mat Gar Mat Slots Evolved 4 | . . 2 2 . . Power . | . . . . . . Propulsion 1 | . . 1 . . . Utility 3 | . . 1 2 . . Weapon . | . . . . . . Parts Attached 61 | 6 8 13 24 7 3 Power 8 | 1 2 . 4 . 1 Engine 5 | 1 2 . 1 . 1 Core 3 | . . . 3 . . Reactor . | . . . . . . Propulsion 19 | 2 2 3 11 1 . Treads 6 | . 1 . 4 1 . Leg 12 | 2 . 3 7 . . Wheel . | . . . . . . Hover . | . . . . . . Flight 1 | . 1 . . . . Utility 14 | 1 3 3 5 1 1 Device 5 | . 2 1 2 . . Storage 2 | 1 . . 1 . . Processor 1 | . . . 1 . . Hackware . | . . . . . . Protection 6 | . 1 2 1 1 1 Artifact . | . . . . . . Weapon 20 | 2 1 7 4 5 1 Energy Gun 9 | 1 1 3 2 2 . Energy Cannon 1 | . . 1 . . . Ballistic Gun 5 | 1 . . 2 2 . Ballistic Cannon 1 | . . 1 . . . Launcher 4 | . . 2 . 1 1 Special Weapon . | . . . . . . Impact Weapon . | . . . . . . Slashing Weapon . | . . . . . . Piercing Weapon . | . . . . . . Special Melee Weapon . | . . . . . . Unidentified Prototypes 2 | . . 1 1 . . Corrupted Parts 2 | . . 1 1 . . System Corruption 10 | . . 8 2 . . Parts Lost 25 | . 2 7 10 1 5 Power 4 | . . 2 2 . . Propulsion 7 | . 1 1 3 . 2 Utility 5 | . 1 1 2 . 1 Weapon 9 | . . 3 3 1 2 Highest Loss Streak 4 | . 2 2 4 1 4 To Critical Strikes . | . . . . . . Average Backups 4 | 3 4 4 4 4 5 Power . | . 1 . . 1 1 Propulsion 1 | 1 1 . 2 1 . Utility . | . . . 1 1 2 Weapon 1 | . 2 3 1 . 1 Tool/Special . | . . . . . . Unused Backups 8 | . 2 . 1 1 4 Power . | . . . . . . Propulsion 2 | . 1 . . 1 . Utility 4 | . . . 1 . 3 Weapon 2 | . 1 . . . 1 Tool/Special . | . . . . . . Average Slot Usage (%) 82 | . 85 58 78 99 88 Engine 8 | . 14 5 2 9 9 Core 1 | . . . 4 . . Treads 12 | . 5 . 9 26 26 Leg 8 | . 17 11 10 . . Flight 1 | . 4 . . . . Device 5 | . 10 6 5 4 . Storage 1 | . 2 . 4 . . Processor 5 | . . . 8 9 9 Protection 18 | . 1 19 17 31 29 Energy Gun 6 | . 14 4 6 6 . Ballistic Gun 8 | . 14 . 7 9 7 Launcher 2 | . . 6 . 1 6 Peak Build Rating 25 | 6 9 10 24 25 23 Average Rating 14 | 4 7 6 17 23 19 On Entrance 11 | . 6 7 8 24 23 Naked Turns . | . . . . . . Heaviest Build 31 | 12 13 16 23 31 31 Greatest Support 63 | 20 20 33 63 63 63 Greatest Overweight (x) 2 | . . 2 2 . . Average Overweight (x) . | . . . . . . Largest Inventory Capacity 8 | 8 8 5 5 5 5 Average Capacity 5 | 7 5 5 5 5 5 Most Carried 8 | 5 8 5 5 5 5 Average Carried 4 | 3 4 4 4 4 4 Final Capacity 8 | 8 5 5 5 5 5 Final Carried 5 | 5 5 2 5 5 4 Class Distribution -------------------- 82% | Mutant 17% | Scavenger-Mutant Dominant Class ---------------- Mutant | -10/Materials Mutant | -9/Materials Mutant | -8/Materials Mutant | -8/Garrison Scavenger-Mutant | -8/Materials Resources | -11 -10 -9 -8 -8 -8 ----------- Run | Yrd Mat Mat Mat Gar Mat Matter Collected 1055 | 236 123 38 391 187 80 Remotely 46 | . . . 46 . . Salvage Created 993 | 25 196 176 342 199 55 Parts 82 | 2 19 14 23 18 6 Haulers Intercepted . | . . . . . . Recyclers Shooed 4 | . 3 . . . 1 Parts Field Recycled . | . . . . . . Retrieved Matter . | . . . . . . Parts Self-Destructed . | . . . . . . Prevented . | . . . . . . Kills | -11 -10 -9 -8 -8 -8 ------- Run | Yrd Mat Mat Mat Gar Mat Combat Hostiles Destroyed 32 | . 9 6 6 8 3 Melee 1 | . . . . . 1 Guns 24 | . 9 . 6 8 1 AOE 7 | . . 6 . . 1 Classes Destroyed 8 | 1 2 4 . . 1 Builder 2 | . . 1 1 . . Tunneler 1 | 1 . . . . . Mechanic 1 | . . 1 . . . Watcher 1 | . . 1 . . . Swarmer 12 | . 6 . . 6 . Grunt 14 | . 3 5 5 . 1 Duelist 1 | . . . . . 1 Sentry 5 | . . 1 1 2 1 Best Kill Streak 4 | 1 4 4 2 3 2 Combat Bots Only 4 | . 4 3 1 3 2 Max Kills in Single Turn 2 | 1 1 2 1 2 1 Gunslinging 1 | . . . . 1 . Exploded 2 | . . 2 . . 1 Melee 1 | . . . . . 1 Uniques/NPCs Destroyed . | . . . . . . Combat | -11 -10 -9 -8 -8 -8 -------- Run | Yrd Mat Mat Mat Gar Mat Hostile Shots Fired 357 | . 55 60 82 87 73 Missed 98 | . 13 22 22 24 17 Hits 259 | . 42 38 60 63 56 Melee 3 | . . . . . 3 Projectile 256 | . 42 38 60 63 53 Critical Strikes 11 | . . . 5 4 2 Actively Blocked 1 | . . . 1 . . Damage Taken 3619 | . 363 727 930 694 905 Core 998 | . 103 334 305 111 145 Absorbed by Shields . | . . . . . . Redirected to Shielding 56 | . . 7 27 12 10 Core Remaining (%) 58 | 100 58 16 . . . Volleys Fired 166 | 2 39 18 63 25 19 Largest 2 | 2 2 2 2 2 2 Hottest 90 | 60 60 80 85 90 59 Shots Fired 267 | 4 77 28 87 47 24 Gun 246 | 4 77 13 87 46 19 Cannon 1 | . . 1 . . . Launcher 20 | . . 14 . 1 5 Special . | . . . . . . Kinetic 148 | 2 39 1 54 33 19 Thermal 71 | 2 38 2 16 13 . Explosive 20 | . . 14 . 1 5 Electromagnetic 28 | . . 11 17 . . Robot Hit Streak 13 | 2 10 13 8 3 6 Robot Miss Streak 4 | 1 4 4 3 2 3 Penetration Max . | . . . . . . Secondary Targets 1 | . . . . 1 . Max Gunslinging Chain 1 | . . . . 1 . Shots Hit Robots 140 | 2 39 18 51 19 11 Core Hits 76 | 1 17 15 24 12 7 Critical Kills . | . . . . . . Critical Parts Destroyed . | . . . . . . Critical Strikes 2 | . . 1 . 1 . Burn 1 | . . . . 1 . Blast 1 | . . 1 . . . Melee Attacks . | . . . . . . Impact . | . . . . . . Slashing . | . . . . . . Piercing . | . . . . . . Sneak Attacks . | . . . . . . Combat Hostiles . | . . . . . . Follow-up Attacks . | . . . . . . Damage Inflicted 2341 | 18 370 741 564 256 392 Guns 1439 | 18 370 88 564 256 143 Cannons 18 | . . 18 . . . Explosions 830 | . . 635 . . 195 Melee . | . . . . . . Ramming 54 | . . . . . 54 Kinetic 809 | 7 145 18 269 227 143 Thermal 427 | 11 225 11 151 29 . Explosive 774 | . . 579 . . 195 Electromagnetic 277 | . . 133 144 . . Impact . | . . . . . . Slashing . | . . . . . . Piercing . | . . . . . . Highest Corruption 12 | . . 12 2 2 2 Average Corruption 3 | . . 10 2 2 2 Corruption Purged . | . . . . . . Corruption Blocked . | . . . . . . Effects 30 | . . 9 9 6 6 Message Errors 10 | . . 2 2 2 4 Matter Fused 5 | . . 2 1 1 1 Heat Flow Errors 6 | . . 1 4 . 1 Energy Discharges 3 | . . 1 1 1 . Parts Rejected 1 | . . . . 1 . Data Loss (minor) 2 | . . . 1 1 . Alerts 2 | . . 2 . . . Misdirections 1 | . . 1 . . . Overload Shots . | . . . . . . Overflow Damage 94 | . . 33 . . 61 Projectiles . | . . . . . . Explosions 94 | . . 33 . . 61 Melee . | . . . . . . Knockbacks . | . . . . . . Impact . | . . . . . . Kinetic . | . . . . . . Secondary . | . . . . . . Self-Inflicted Damage 288 | . . 249 . . 39 Shots 7 | . . 6 . . 1 Rammed 35 | . . . . . 35 Targets Rammed 36 | . 1 . . . 35 Kicked 1 | . 1 . . . . Crushed . | . . . . . . Highest Temperature 396 | 20 76 217 396 157 184 Average Temperature 52 | 15 25 68 95 40 37 Received Heat Transfer 1338 | . 72 186 567 180 333 Effects 4 | . . . 4 . . Shutdowns 1 | . . . 1 . . Interference 3 | . . . 3 . . Siege Activations . | . . . . . . Martial Activations . | . . . . . . Shielding Activations . | . . . . . . Robots Disrupted . | . . . . . . Combat Hostiles . | . . . . . . Robots Corrupted . | . . . . . . Combat Hostiles . | . . . . . . Parts Fried . | . . . . . . Impact Corruptions . | . . . . . . Robots Melted . | . . . . . . Combat Hostiles . | . . . . . . Parts Melted . | . . . . . . Heat Transferred 1118 | 25 525 50 370 148 . Parts Sabotaged . | . . . . . . Parts Stolen . | . . . . . . Parts Stripped . | . . . . . . Power Chain Reactions 1 | . . 1 . . . Alert | -11 -10 -9 -8 -8 -8 ------- Run | Yrd Mat Mat Mat Gar Mat Maximum Alert Level 1 | . . . . 1 . Low Security (%) 90 | 100 100 100 100 49 100 Level 1 9 | . . . . 50 . Level 2 . | . . . . . . Level 3 . | . . . . . . Level 4 . | . . . . . . Level 5 . | . . . . . . High Security . | . . . . . . Max Security . | . . . . . . Peak Influence 240 | 5 125 129 52 240 193 Initial 117 | . . 22 52 2 117 Average 70 | . 57 37 11 159 122 Influence Increases 1154 | 5 308 294 159 248 140 Destroy 0b10 Robot/C 640 | . 180 120 120 160 60 Destroy 0b10 Robot/NC 25 | 5 . 15 5 . . Destroy Leader 122 | . 40 22 30 10 20 Successful Hack 35 | . 13 4 4 14 . Disable Machine 60 | . . 45 . . 15 Anti-Garrison Action 50 | . . . . 50 . Destroy Structure 147 | . . 88 . 14 45 Lose Combat Pursuer 75 | . 75 . . . . Influence Decreases 1117 | 5 254 223 280 12 343 Entered New Map 230 | . . 32 73 2 123 Time Decay 690 | 5 234 131 150 . 170 Lost Part 197 | . 20 60 57 10 50 Squads Dispatched 9 | . 2 2 2 . 3 Investigation 5 | . 2 1 1 . 1 Extermination . | . . . . . . Reinforcement 3 | . . 1 . . 2 Assault . | . . . . . . Garrison 1 | . . . 1 . . Intercept . | . . . . . . Searches Triggered . | . . . . . . Construction Impeded . | . . . . . . Haulers Reinforced . | . . . . . . Active Scanning Responses . | . . . . . . Cargo Convoy Interrupts . | . . . . . . Stealth | -11 -10 -9 -8 -8 -8 --------- Run | Yrd Mat Mat Mat Gar Mat Distress Signals 6 | . 1 1 2 . 2 Communications Jammed . | . . . . . . Distress Signals . | . . . . . . Times Spotted 49 | . 13 9 13 8 6 Peak Tracking Total 4 | . 4 3 4 4 3 Tactical Retreats 3 | . 3 . . . . Traps | -11 -10 -9 -8 -8 -8 ------- Run | Yrd Mat Mat Mat Gar Mat Traps Triggered 7 | . 1 6 . . . Indirectly . | . . . . . . Trap Hack Attempts . | . . . . . . Triggered . | . . . . . . Disarmed . | . . . . . . Reprogrammed . | . . . . . . Reused . | . . . . . . Traps Extracted . | . . . . . . Installed . | . . . . . . Triggered . | . . . . . . Machines | -11 -10 -9 -8 -8 -8 ---------- Run | Yrd Mat Mat Mat Gar Mat Machines Disabled 5 | . . 3 . 1 1 Max in Single Turn 2 | . . 2 . 1 1 Garrison Relay 1 | . . . . 1 . Machines Repaired . | . . . . . . Machines Dismantled . | . . . . . . Machines Sabotaged . | . . . . . . Overloaded Fab Kills . | . . . . . . Hacking | -11 -10 -9 -8 -8 -8 --------- Run | Yrd Mat Mat Mat Gar Mat Machines Accessed 8 | . 2 1 3 1 1 Terminals 5 | . 2 1 . 1 1 Fabricators . | . . . . . . Repair Stations . | . . . . . . Recycling Units 2 | . . . 2 . . Scanalyzers . | . . . . . . Garrison Access 1 | . . . 1 . . Total Hacks 18 | . 4 1 8 2 3 Successful 8 | . 2 1 2 1 2 Failed 10 | . 2 . 6 1 1 Catastrophic 2 | . 1 . 1 . . Database Lockouts . | . . . . . . Manual 1 | . 1 . . . . Terminals 10 | . 4 1 . 2 3 Fabricators . | . . . . . . Repair Stations . | . . . . . . Recycling Units 6 | . . . 6 . . Scanalyzers . | . . . . . . Garrison Access 2 | . . . 2 . . Terminal Hacks 6 | . 2 1 . 1 2 Prototype ID Bank 1 | . . . . . 1 Branch Access Points 1 | . 1 . . . . Emergency Access Points 3 | . . 1 . 1 1 Zone Layout 1 | . 1 . . . . Fabricator Hacks . | . . . . . . Repair Station Hacks . | . . . . . . Recycling Unit Hacks 1 | . . . 1 . . Retrieve Components 1 | . . . 1 . . Scanalyzer . | . . . . . . Garrison Access Hacks 1 | . . . 1 . . Unlock Access 1 | . . . 1 . . Unauthorized Hacks . | . . . . . . Terminals . | . . . . . . Fabricators . | . . . . . . Repair Stations . | . . . . . . Recycling Units . | . . . . . . Scanalyzers . | . . . . . . Garrison Access . | . . . . . . Data Cores Recovered . | . . . . . . Used . | . . . . . . Hacking Detections 6 | . 2 . 2 1 1 Full Trace Events 2 | . 1 . 1 . . Feedback Events . | . . . . . . Feedback Blocked . | . . . . . . Robot Schematics Acquired . | . . . . . . Robots Built . | . . . . . . Authchips . | . . . . . . Time . | . . . . . . Total Robot Build Rating . | . . . . . . Part Schematics Acquired . | . . . . . . Parts Built . | . . . . . . Authchips . | . . . . . . Time . | . . . . . . Total Part Build Rating . | . . . . . . Parts Repaired . | . . . . . . Time . | . . . . . . Parts Recycled . | . . . . . . Recycled Matter . | . . . . . . Retrieved Matter . | . . . . . . Retrieved Components 3 | . . . 3 . . Parts Scanalyzed . | . . . . . . Part Schematics Acquired . | . . . . . . Parts Damaged . | . . . . . . Bothacking | -11 -10 -9 -8 -8 -8 ------------ Run | Yrd Mat Mat Mat Gar Mat Used RIF Installer 1 | . . . . 1 . Robots Hacked . | . . . . . . Non-combat . | . . . . . . Combat . | . . . . . . Robot Hacks Applied . | . . . . . . Relay Couplers Released 5 | . . . . 5 . Machine Destruction 5 | . . . . 5 . Fabnet Peak Effective % . | . . . . . . Robots Rewired . | . . . . . . Allies Hacked . | . . . . . . Hacks Repelled . | . . . . . . Allies | -11 -10 -9 -8 -8 -8 -------- Run | Yrd Mat Mat Mat Gar Mat Total Allies . | . . . . . . Largest Group . | . . . . . . Highest-Rated Group . | . . . . . . Highest-Rated Ally . | . . . . . . Total Orders . | . . . . . . Ally Attacks . | . . . . . . Total Damage . | . . . . . . Kills . | . . . . . . Allies Corrupted . | . . . . . . Allies Melted . | . . . . . . Intel | -11 -10 -9 -8 -8 -8 ------- Run | Yrd Mat Mat Mat Gar Mat Active Infowar (turns) 482 | . 397 85 . . . Sensors 204 | . 119 85 . . . Terrain 278 | . 278 . . . . Robot Analysis Total . | . . . . . . Derelict Logs Recovered . | . . . . . . Drone Launches . | . . . . . . Drone Recoveries . | . . . . . . Exploration | -11 -10 -9 -8 -8 -8 ------------- Run | Yrd Mat Mat Mat Gar Mat Turns Passed 2425 | 83 559 417 553 473 340 Spaces Moved 1303 | 57 319 322 223 239 143 Core 167 | 11 . 143 13 . . Treads 600 | . 102 . 116 239 143 Legs 536 | 46 217 179 94 . . Wheels . | . . . . . . Hover . | . . . . . . Flight . | . . . . . . Fastest Speed 50 | 50 120 50 50 160 163 Average Speed 136 | 106 132 108 142 162 163 Slowest Speed 190 | 120 160 150 190 163 170 Overloaded Moves . | . . . . . . Propulsion Burnouts . | . . . . . . Robots Hopped . | . . . . . . Potential Cave-ins . | . . . . . . Cave-ins Triggered . | . . . . . . Exploration Rate (%) 22 | 5 39 32 9 32 16 Regions Visited 5 Branch Regions . Pre-discovered Areas . | . . . . . . Known Exits Taken 1 | . . . 1 . . Unknown Exits Taken 3 | 1 1 1 . . . Scrap Searched . | . . . . . . Spaces Dug . | . . . . . . Terrain Destroyed 187 | . . 126 . 11 50 Melee . | . . . . . . Projectile . | . . . . . . AOE 187 | . . 126 . 11 50 Terrain Rammed . | . . . . . . Walls Destroyed . | . . . . . . Machines Disabled . | . . . . . . Actions | -11 -10 -9 -8 -8 -8 --------- Run | Yrd Mat Mat Mat Gar Mat Total 1689 | 75 384 358 381 286 205 Wait 37 | . 6 . 31 . . Move 1299 | 56 318 321 223 238 143 Hop . | . . . . . . Pick Up 46 | 11 5 3 18 8 1 Fast Attach 23 | . 2 8 11 1 1 Attach 25 | 6 2 5 8 3 1 Detach . | . . . . . . Swap 24 | . 6 1 12 4 1 Drop 33 | . 5 2 15 7 4 Fire 166 | 2 39 18 63 25 19 Melee . | . . . . . . Ram . | . . . . . . Kick 1 | . 1 . . . . Crush 35 | . . . . . 35 Escape Stasis . | . . . . . . Rewire . | . . . . . . Trap . | . . . . . . Miscellaneous . | . . . . . . Route ------- -11/Scrapyard -10/Materials (discovered 2 exits: *Mat / Min) -9/Materials -8/Materials -8/Garrison -8/Materials History --------- Turn | Location | Event 11 | -11/Scrapyard | Discovered new exit (range 14) 84 | -11/Scrapyard | Entered Materials 306 | -10/Materials | Build established: Mutant 532 | -10/Materials | Discovered new exit (range 12) 596 | -10/Materials | Identified exit to Mines 643 | -10/Materials | Entered another Materials area 643 | -9/Materials | Evolved 2 slots: Propulsion x1, Utility x1 931 | -9/Materials | System corruption reached 10% 963 | -9/Materials | Core integrity fell below 50% 1013 | -9/Materials | Core integrity fell below 20% 1049 | -9/Materials | Discovered new exit (range 5) 1060 | -9/Materials | Entered another Materials area 1060 | -8/Materials | Evolved 2 slots: Utility x2 1275 | -8/Materials | Garrison activated, responded to threat 1349 | -8/Materials | Lost 4 parts (1p1n1u1w) 1373 | -8/Materials | Core integrity fell below 50% 1613 | -8/Materials | Identified exit to Garrison 1613 | -8/Materials | Entered Garrison 1671 | -8/Garrison | Triggered checkpoint 1719 | -8/Garrison | Triggered checkpoint 1847 | -8/Garrison | Garrison Relay disabled 2034 | -8/Garrison | Discovered new exit (range 10) 2058 | -8/Garrison | Installed Relay Interface Framework 2086 | -8/Garrison | Entered Materials 2105 | -8/Materials | Core integrity fell below 20% 2426 | -8/Materials | Destroyed by G-47 Trooper with Particle Gun Last Messages --------------- 02393_ Slammed into Y-45 Defender. 02393_ K-01 Serf collects debris. 02394_ Critical hit (Burn: +37). 02394_ Slammed into Y-45 Defender. 02395_ KYYXNUAAD,T7HVJH VS%KWKWQ#,T8Q 02396_ Slammed into Y-45 Defender. 02397_ K-01 Serf collects debris. 02397_ Slammed into Y-45 Defender. 02401_ K-01 Serf collects debris. 02402_ Slammed into Y-45 Defender. 02403_ Lgt. Treads destroyed. 02404_ Slammed into Y-45 Defender. 02404_ K-01 Serf cleans the Terminal. 02406_ Slammed into Y-45 Defender. 02406_ K-01 Serf destroyed. 02407_ Slammed into Y-45 Defender. 02407_ Y-45 Defender destroyed. 02414_ Imp. Treads destroyed. 02421_ Acquired 25 matter. 02425_ Terminal disabled. Map ----- +----------------------------------------------------+ | !! # #####+#####! / #???? | | !! """ # * # # #???? | | # """ # # # """ #???? | | # # """ #! """ + + "R [#???? | | # # ## # """ # # """ #???? | | + """ # # [#???? | | #### #### # # ##+#####???? | | ######+##?# ######## # #???? | | ## # ######## + #???? | | ## #^ # #???? | | ?# # # """ #???? | | ?# ! ! #^^""" ###### """ #???? | | ?# # """ #????# """ [#???? | | ?# + """ #????########???? | | ?? # #???????????????? | | ?? # #???????????????? | | ??##########+### #???????????????? | | ?????????? # #???????????????? | | ???????? """ # ##########??????? | | ?????? """ R" # # !#??????? | | ?????# """ """ # # """ #??????? | | ?????# """ # # """ #??????? | | ?????# ! # # " m #??????? | | ?????? # /g #??????? | | ?????? = # #g = #??????? | | ???????# #####?# # =@ #??????? | | ???????##??????# # "T #??????? | | ???????????????# # #??????? | | ???????????????# ##########??????? | | ???????????????# #???????????????? | | ???????????????# #???????????????? | | ???????????????# #???????????????? | | ???????????????# ????????????????? | | ???????????????# ????????????????? | | ???????????????# ????????????????? | | ???????????????# ????????????????? | | ???????????????# ????????????????? | | ???????????????+ ????????????????? | | ???????????????? ????????????????? | | ???????????????????????????????????? | | ???????????????????????????????????? | | ???????????????????????????????????? | | ???????????????????????????????????? | | ???????????????????????????????????? | | ???????????????????????????????????? | | ???????????????????????????????????? | | ???????????????????????????????????? | | ???????????????????????????????????? | | ???????????????????????????????????? | | ???????????????????????????????????? | +----------------------------------------------------+ Best States ------------- Heat Dissipation 45 Energy Generation 14 Energy Capacity 360 Matter Stores 300 Matter Capacity 300 Sight Range 16 Robot Scan Range 14 Terrain Scan Range 16 Terrain Scan Density 85 Armor Coverage 375 Core Shielding 20 Utility Shielding 33 Evasion (%) 55 Recoil Reduction 3 Item Schematics ----------------- None Robot Schematics ------------------ None Fabricated ------------ Nothing Repaired ---------- Nothing Alien Tech Used ----------------- None Achievements -------------- None Challenges ------------ None Game ------ Seed MolecularShockCapacitor Manual? 0 Play Time 00:36:00 Cumulative 22.1 hours Start 2025.07.30 @ 22:56:58 End 2025.08.05 @ 23:05:22 Sessions 5 Manual Loads 0 Difficulty Rogue Special Mode None Game No. 34 Rogue 34 Adventurer 0 Explorer 0 Win Type - Total 0 Types 0/0/0/0/0/0/0/0/0/0 Lore% 10 Gallery% 23 Achievement% 18 Wizard Run 0 Options --------- Layout 1 ASCII 0 Keyboard 0 Movement Mouse Keybinds 0 Fullscreen 1 Font 32/SmallcapsGlow Map View 50x35 Zoom Use 0% Tactical HUD 1 Map Filters NONE Filters NONE Steam 1 RUN: f04d761d-fd08-4aea-993f-48eb901f68b3